Workbook

Sheet PLL
A2: Time | B2: FX | C2: SX | D2: PX | E2: PD | F2: LP | G2: OP | H2: DM | I2: Yi | O2: SR | P2: =16000000/(32-1)/64 -> 8064.516129 | R2: Hz | V2: RC Filter | W2: A = Exp(-2*pi()*Fc/Fs)
A3: 0 | B3: 1270 | C3: 0 | D3: 0 | E3: 0 | F3: 0 | G3: 0 | H3: 1050 | I3: 876.2113912 | O3: Fmin | P3: 1020 | Q3: ="= "&TEXT(P3*65536/P$2,0) -> = 8289 | R3: Hz | V3: SR | W3: =16000000/(32-1)/64 -> 8064.516129 | X3: Sample Frequency | AB3: 1975 | AC3: 1020
A4: 1 | B4: 1270 | C4: 0 | D4: 0 | E4: 0 | F4: 0 | G4: 0 | H4: 1050 | I4: 855.1978947 | O4: Fspace | P4: 1070 | Q4: ="= "&TEXT(P4*65536/P$2,0) -> = 8695 | R4: Hz | T4: =(P4-P3)*65536/P$2 -> 406.3232 | V4: LPF | W4: 150 | X4: Corner Frequency | AB4: 2025 | AC4: 1070
A5: 2 | B5: 1270 | C5: 0 | D5: 0 | E5: 0 | F5: 0 | G5: 0 | H5: 1050 | I5: 838.9690416 | O5: Fmark | P5: 1270 | Q5: ="= "&TEXT(P5*65536/P$2,0) -> = 10321 | R5: Hz | T5: =(P5/2+P4/2-P3)*65536/P$2 -> 1218.9696 | V5: D2 | W5: 32 | X5: Divisor | AB5: 2225 | AC5: 1270
A6: 3 | B6: 1270 | C6: 1 | D6: 1 | E6: 0 | F6: 0 | G6: 0 | H6: 1050 | I6: 827.7462062 | O6: Fmax | P6: 1320 | Q6: ="= "&TEXT(P6*65536/P$2,0) -> = 10727 | R6: Hz | T6: =(P6-P4)*65536/P$2 -> 2031.616 | V6: A | W6: =W5*EXP(-2*PI()*W4/W3) -> 28.47050548 | X6: Constant | AB6: 2275 | AC6: 1320
A7: 4 | B7: 1270 | C7: 1 | D7: 1 | E7: 0 | F7: 0 | G7: 0 | H7: 1050 | I7: 821.6824767 | O7: LPF | P7: =W10 -> 150 | Q7: ~baud/2 | R7: Hz | V7: E | W7: =INT(W6+0.5)-W6 -> -0.4705054835 | X7: Error
A8: 5 | B8: 1270 | C8: 1 | D8: 1 | E8: 0 | F8: 0 | G8: 0 | H8: 1050 | I8: 820.8605672 | O8: Calc K | P8: =(P5-P3)*65536/P2 -> 2031.616 | V8: LP=PD+A*(LP-PD)/D
A9: 6 | B9: 1270 | C9: 0 | D9: 1 | E9: 2032 | F9: 254 | G9: 32 | H9: 1050 | I9: 825.2916891 | O9: Calc D | P9: =SQRT(2*PI()*P7/P8)/2 -> 0.3405530356 | Q9: =SQRT(2*PI*LPF/K)/2 | V9: Stages | W9: 1
A10: 7 | B10: 1270 | C10: 0 | D10: 0 | E10: 0 | F10: 222 | G10: 56 | H10: 1050 | I10: 834.9153984 | O10: Calc WN | P10: =SQRT(P8*2*PI()*P7) -> 1383.745992 | Q10: =sqrt(K*2*Pi*LPF) | R10: =P10/2/PI() -> 220.2300146 | S10: Hz | V10: LPF | W10: =W4*(2^(1/W9)-1)^0.5 -> 150 | X10: Corner Frequency
A11: 8 | B11: 1270 | C11: 0 | D11: 0 | E11: 0 | F11: 194 | G11: 74 | H11: 1050 | I11: 849.6004202 | O11: Lock Time | P11: =2*PI()/P10 -> 0.004540707141 | Q11: =2*Pi/WN | R11: s | S11: =P2*P11 -> 36.61860598 | T11: ticks
A12: 9 | B12: 1270 | C12: 1 | D12: 0 | E12: 2032 | F12: 424 | G12: 118 | H12: 1050 | I12: 869.1464395 | O12: Lock Range | P12: =2*P9*P10 -> 942.4777961 | Q12: =2*D*WN | R12: Hz
A13: 10 | B13: 1270 | C13: 1 | D13: 0 | E13: 2032 | F13: 625 | G13: 182 | H13: 1050 | I13: 893.2868331 | O13: Mid Point | P13: =((P5+P4)/2-P3)*65536/P2 -> 1218.9696
A14: 11 | B14: 1270 | C14: 1 | D14: 1 | E14: 0 | F14: 546 | G14: 228 | H14: 1050 | I14: 921.6923074
A15: 12 | B15: 1270 | C15: 0 | D15: 1 | E15: 2032 | F15: 732 | G15: 291 | H15: 1050 | I15: 953.9753895
A16: 13 | B16: 1270 | C16: 0 | D16: 1 | E16: 2032 | F16: 895 | G16: 367 | H16: 1050 | I16: 989.6957129
A17: 14 | B17: 1270 | C17: 0 | D17: 1 | E17: 2032 | F17: 1038 | G17: 451 | H17: 1050 | I17: 1028.366025
A18: 15 | B18: 1270 | C18: 1 | D18: 0 | E18: 2032 | F18: 1163 | G18: 540 | H18: 1050 | I18: 1069.458831
A19: 16 | B19: 1270 | C19: 1 | D19: 0 | E19: 2032 | F19: 1272 | G19: 632 | H19: 1050 | I19: 1112.413595
A20: 17 | B20: 1270 | C20: 1 | D20: 0 | E20: 2032 | F20: 1367 | G20: 724 | H20: 1050 | I20: 1156.64438
A21: 18 | B21: 1270 | C21: 1 | D21: 1 | E21: 0 | F21: 1196 | G21: 783 | H21: 1050 | I21: 1201.547842
A22: 19 | B22: 1270 | C22: 0 | D22: 1 | E22: 2032 | F22: 1301 | G22: 848 | H22: 1050 | I22: 1246.511465
A23: 20 | B23: 1270 | C23: 0 | D23: 1 | E23: 2032 | F23: 1393 | G23: 917 | H23: 1050 | I23: 1290.921908
A24: 21 | B24: 1270 | C24: 0 | D24: 1 | E24: 2032 | F24: 1473 | G24: 987 | H24: 1050 | I24: 1334.173379
A25: 22 | B25: 1270 | C25: 1 | D25: 0 | E25: 2032 | F25: 1543 | G25: 1057 | H25: 1050 | I25: 1375.675895
A26: 23 | B26: 1270 | C26: 1 | D26: 0 | E26: 2032 | F26: 1605 | G26: 1126 | H26: 1050 | I26: 1414.863328
A27: 24 | B27: 1270 | C27: 1 | D27: 0 | E27: 2032 | F27: 1659 | G27: 1193 | H27: 1050 | I27: 1451.201131
A28: 25 | B28: 1270 | C28: 0 | D28: 1 | E28: 2032 | F28: 1706 | G28: 1258 | H28: 1050 | I28: 1484.193628
A29: 26 | B29: 1070 | C29: 0 | D29: 1 | E29: 2032 | F29: 1747 | G29: 1320 | H29: 1050 | I29: 1513.390776
A30: 27 | B30: 1070 | C30: 0 | D30: 1 | E30: 2032 | F30: 1783 | G30: 1378 | H30: 1050 | I30: 1538.394303
A31: 28 | B31: 1070 | C31: 0 | D31: 0 | E31: 0 | F31: 1560 | G31: 1401 | H31: 1050 | I31: 1558.863141
A32: 29 | B32: 1070 | C32: 1 | D32: 0 | E32: 2032 | F32: 1619 | G32: 1429 | H32: 1050 | I32: 1574.51808
A33: 30 | B33: 1070 | C33: 1 | D33: 0 | E33: 2032 | F33: 1671 | G33: 1460 | H33: 1050 | I33: 1585.145573
A34: 31 | B34: 1070 | C34: 1 | D34: 0 | E34: 2032 | F34: 1717 | G34: 1493 | H34: 1050 | I34: 1590.600654
A35: 32 | B35: 1070 | C35: 0 | D35: 1 | E35: 2032 | F35: 1757 | G35: 1526 | H35: 1050 | I35: 1590.808911
A36: 33 | B36: 1070 | C36: 0 | D36: 1 | E36: 2032 | F36: 1792 | G36: 1560 | H36: 1050 | I36: 1585.767503
A37: 34 | B37: 1070 | C37: 0 | D37: 1 | E37: 2032 | F37: 1822 | G37: 1593 | H37: 1050 | I37: 1575.545199
A38: 35 | B38: 1070 | C38: 0 | D38: 0 | E38: 0 | F38: 1594 | G38: 1594 | H38: 1050 | I38: 1560.281439
A39: 36 | B39: 1070 | C39: 1 | D39: 0 | E39: 2032 | F39: 1649 | G39: 1601 | H39: 1050 | I39: 1540.184433
A40: 37 | B40: 1070 | C40: 1 | D40: 0 | E40: 2032 | F40: 1697 | G40: 1613 | H40: 1050 | I40: 1515.528319
A41: 38 | B41: 1070 | C41: 1 | D41: 1 | E41: 0 | F41: 1484 | G41: 1596 | H41: 1050 | I41: 1486.649426
A42: 39 | B42: 1070 | C42: 1 | D42: 1 | E42: 0 | F42: 1298 | G42: 1558 | H42: 1050 | I42: 1453.941686
A43: 40 | B43: 1070 | C43: 0 | D43: 1 | E43: 2032 | F43: 1390 | G43: 1537 | H43: 1050 | I43: 1417.851256
A44: 41 | B44: 1070 | C44: 0 | D44: 0 | E44: 0 | F44: 1216 | G44: 1496 | H44: 1050 | I44: 1378.870438
A45: 42 | B45: 1070 | C45: 0 | D45: 0 | E45: 0 | F45: 1064 | G45: 1442 | H45: 1050 | I45: 1337.530962
A46: 43 | B46: 1070 | C46: 0 | D46: 0 | E46: 0 | F46: 931 | G46: 1378 | H46: 1050 | I46: 1294.39673
A47: 44 | B47: 1070 | C47: 1 | D47: 0 | E47: 2032 | F47: 1069 | G47: 1339 | H47: 1050 | I47: 1250.056127
A48: 45 | B48: 1070 | C48: 1 | D48: 1 | E48: 0 | F48: 935 | G48: 1288 | H48: 1050 | I48: 1205.113993
A49: 46 | B49: 1070 | C49: 1 | D49: 1 | E49: 0 | F49: 818 | G49: 1229 | H49: 1050 | I49: 1160.183373
A50: 47 | B50: 1070 | C50: 0 | D50: 1 | E50: 2032 | F50: 970 | G50: 1196 | H50: 1050 | I50: 1115.877157
A51: 48 | B51: 1070 | C51: 0 | D51: 1 | E51: 2032 | F51: 1103 | G51: 1184 | H51: 1050 | I51: 1072.799716
A52: 49 | B52: 1070 | C52: 0 | D52: 0 | E52: 0 | F52: 965 | G52: 1156 | H52: 1050 | I52: 1031.53866
A53: 50 | B53: 1070 | C53: 0 | D53: 0 | E53: 0 | F53: 844 | G53: 1117 | H53: 1050 | I53: 992.6568211
A54: 51 | B54: 1070 | C54: 1 | D54: 0 | E54: 2032 | F54: 993 | G54: 1101 | H54: 1050 | I54: 956.6845791
A55: 52 | B55: 1070 | C55: 1 | D55: 1 | E55: 0 | F55: 868 | G55: 1071 | H55: 1050 | I55: 924.1126229
A56: 53 | B56: 1270 | C56: 1 | D56: 1 | E56: 0 | F56: 759 | G56: 1032 | H56: 1050 | I56: 895.3852596
A57: 54 | B57: 1270 | C57: 1 | D57: 1 | E57: 0 | F57: 664 | G57: 986 | H57: 1050 | I57: 870.8943527
A58: 55 | B58: 1270 | C58: 0 | D58: 1 | E58: 2032 | F58: 835 | G58: 967 | H58: 1050 | I58: 850.9739773
A59: 56 | B59: 1270 | C59: 0 | D59: 0 | E59: 0 | F59: 730 | G59: 937 | H59: 1050 | I59: 835.8958629
A60: 57 | B60: 1270 | C60: 0 | D60: 0 | E60: 0 | F60: 638 | G60: 899 | H60: 1050 | I60: 825.8656867
A61: 58 | B61: 1270 | C61: 1 | D61: 0 | E61: 2032 | F61: 813 | G61: 888 | H61: 1050 | I61: 821.0202683
A62: 59 | B62: 1270 | C62: 1 | D62: 1 | E62: 0 | F62: 711 | G62: 865 | H62: 1050 | I62: 821.4257028
A63: 60 | B63: 1270 | C63: 1 | D63: 1 | E63: 0 | F63: 622 | G63: 834 | H63: 1050 | I63: 827.0764598
A64: 61 | B64: 1270 | C64: 0 | D64: 1 | E64: 2032 | F64: 799 | G64: 829 | H64: 1050 | I64: 837.8954585
A65: 62 | B65: 1270 | C65: 0 | D65: 1 | E65: 2032 | F65: 954 | G65: 845 | H65: 1050 | I65: 853.7351195
A66: 63 | B66: 1270 | C66: 0 | D66: 0 | E66: 0 | F66: 834 | G66: 843 | H66: 1050 | I66: 874.3793774
A67: 64 | B67: 1270 | C67: 1 | D67: 0 | E67: 2032 | F67: 984 | G67: 861 | H67: 1050 | I67: 899.5466283
A68: 65 | B68: 1270 | C68: 1 | D68: 0 | E68: 2032 | F68: 1115 | G68: 893 | H68: 1050 | I68: 928.8935713
A69: 66 | B69: 1270 | C69: 1 | D69: 1 | E69: 0 | F69: 975 | G69: 904 | H69: 1050 | I69: 962.0198913
A70: 67 | B70: 1270 | C70: 0 | D70: 1 | E70: 2032 | F70: 1108 | G70: 930 | H70: 1050 | I70: 998.4737193
A71: 68 | B71: 1270 | C71: 0 | D71: 1 | E71: 2032 | F71: 1224 | G71: 967 | H71: 1050 | I71: 1037.757797
A72: 69 | B72: 1270 | C72: 0 | D72: 1 | E72: 2032 | F72: 1325 | G72: 1012 | H72: 1050 | I72: 1079.336258
A73: 70 | B73: 1270 | C73: 1 | D73: 0 | E73: 2032 | F73: 1414 | G73: 1063 | H73: 1050 | I73: 1122.641941
A74: 71 | B74: 1270 | C74: 1 | D74: 0 | E74: 2032 | F74: 1492 | G74: 1117 | H74: 1050 | I74: 1167.084121
A75: 72 | B75: 1270 | C75: 1 | D75: 0 | E75: 2032 | F75: 1560 | G75: 1173 | H75: 1050 | I75: 1212.056574
A76: 73 | B76: 1270 | C76: 1 | D76: 1 | E76: 0 | F76: 1365 | G76: 1197 | H76: 1050 | I76: 1256.945839
A77: 74 | B77: 1270 | C77: 0 | D77: 1 | E77: 2032 | F77: 1449 | G77: 1229 | H77: 1050 | I77: 1301.139592
A78: 75 | B78: 1270 | C78: 0 | D78: 1 | E78: 2032 | F78: 1522 | G78: 1266 | H78: 1050 | I78: 1344.034996
A79: 76 | B79: 1270 | C79: 0 | D79: 1 | E79: 2032 | F79: 1586 | G79: 1306 | H79: 1050 | I79: 1385.046924
A80: 77 | B80: 1270 | C80: 1 | D80: 0 | E80: 2032 | F80: 1642 | G80: 1348 | H80: 1050 | I80: 1423.615941
A81: 78 | B81: 1270 | C81: 1 | D81: 0 | E81: 2032 | F81: 1691 | G81: 1391 | H81: 1050 | I81: 1459.215936
A82: 79 | B82: 1070 | C82: 1 | D82: 0 | E82: 2032 | F82: 1734 | G82: 1434 | H82: 1050 | I82: 1491.361296
A83: 80 | B83: 1070 | C83: 0 | D83: 1 | E83: 2032 | F83: 1772 | G83: 1477 | H83: 1050 | I83: 1519.613535
A84: 81 | B84: 1070 | C84: 0 | D84: 1 | E84: 2032 | F84: 1805 | G84: 1518 | H84: 1050 | I84: 1543.58727
A85: 82 | B85: 1070 | C85: 0 | D85: 1 | E85: 2032 | F85: 1834 | G85: 1558 | H85: 1050 | I85: 1562.95548
A86: 83 | B86: 1070 | C86: 0 | D86: 0 | E86: 0 | F86: 1604 | G86: 1564 | H86: 1050 | I86: 1577.453967
A87: 84 | B87: 1070 | C87: 1 | D87: 0 | E87: 2032 | F87: 1658 | G87: 1576 | H87: 1050 | I87: 1586.884962
A88: 85 | B88: 1070 | C88: 1 | D88: 0 | E88: 2032 | F88: 1705 | G88: 1593 | H88: 1050 | I88: 1591.119817
A89: 86 | B89: 1070 | C89: 1 | D89: 0 | E89: 2032 | F89: 1746 | G89: 1613 | H89: 1050 | I89: 1590.100767
A90: 87 | B90: 1070 | C90: 1 | D90: 1 | E90: 0 | F90: 1527 | G90: 1602 | H90: 1050 | I90: 1583.841711
A91: 88 | B91: 1070 | C91: 0 | D91: 1 | E91: 2032 | F91: 1591 | G91: 1600 | H91: 1050 | I91: 1572.428028
A92: 89 | B92: 1070 | C92: 0 | D92: 1 | E92: 2032 | F92: 1647 | G92: 1606 | H92: 1050 | I92: 1556.015411
A93: 90 | B93: 1070 | C93: 0 | D93: 0 | E93: 0 | F93: 1441 | G93: 1585 | H93: 1050 | I93: 1534.827739
A94: 91 | B94: 1070 | C94: 0 | D94: 0 | E94: 0 | F94: 1260 | G94: 1544 | H94: 1050 | I94: 1509.154028
A95: 92 | B95: 1070 | C95: 1 | D95: 0 | E95: 2032 | F95: 1357 | G95: 1520 | H95: 1050 | I95: 1479.34449
A96: 93 | B96: 1070 | C96: 1 | D96: 1 | E96: 0 | F96: 1187 | G96: 1478 | H96: 1050 | I96: 1445.805748
A97: 94 | B97: 1070 | C97: 1 | D97: 1 | E97: 0 | F97: 1038 | G97: 1423 | H97: 1050 | I97: 1408.995298
A98: 95 | B98: 1070 | C98: 0 | D98: 1 | E98: 2032 | F98: 1163 | G98: 1390 | H98: 1050 | I98: 1369.415262
A99: 96 | B99: 1070 | C99: 0 | D99: 1 | E99: 2032 | F99: 1272 | G99: 1375 | H99: 1050 | I99: 1327.605544
A100: 97 | B100: 1070 | C100: 0 | D100: 0 | E100: 0 | F100: 1113 | G100: 1342 | H100: 1050 | I100: 1284.13646
A101: 98 | B101: 1070 | C101: 0 | D101: 0 | E101: 0 | F101: 973 | G101: 1295 | H101: 1050 | I101: 1239.600963
A102: 99 | B102: 1070 | C102: 1 | D102: 0 | E102: 2032 | F102: 1106 | G102: 1271 | H102: 1050 | I102: 1194.606551
A103: 100 | B103: 1070 | C103: 1 | D103: 1 | E103: 0 | F103: 967 | G103: 1233 | H103: 1050 | I103: 1149.766984
A104: 101 | B104: 1070 | C104: 1 | D104: 1 | E104: 0 | F104: 846 | G104: 1184 | H104: 1050 | I104: 1105.693908
A105: 102 | B105: 1070 | C105: 1 | D105: 1 | E105: 0 | F105: 740 | G105: 1128 | H105: 1050 | I105: 1062.988515
A106: 103 | B106: 1070 | C106: 0 | D106: 1 | E106: 2032 | F106: 902 | G106: 1099 | H106: 1050 | I106: 1022.233339
A107: 104 | B107: 1070 | C107: 0 | D107: 0 | E107: 0 | F107: 789 | G107: 1060 | H107: 1050 | I107: 983.9843122
A108: 105 | B108: 1070 | C108: 0 | D108: 0 | E108: 0 | F108: 690 | G108: 1013 | H108: 1050 | I108: 948.7631819
A109: 106 | B109: 1270 | C109: 1 | D109: 0 | E109: 2032 | F109: 858 | G109: 993 | H109: 1050 | I109: 917.0503916
A110: 107 | B110: 1270 | C110: 1 | D110: 1 | E110: 0 | F110: 750 | G110: 962 | H110: 1050 | I110: 889.2785283
A111: 108 | B111: 1270 | C111: 1 | D111: 1 | E111: 0 | F111: 656 | G111: 923 | H111: 1050 | I111: 865.8264221
A112: 109 | B112: 1270 | C112: 1 | D112: 1 | E112: 0 | F112: 574 | G112: 879 | H112: 1050 | I112: 847.013978
A113: 110 | B113: 1270 | C113: 0 | D113: 1 | E113: 2032 | F113: 757 | G113: 863 | H113: 1050 | I113: 833.0978123
A114: 111 | B114: 1270 | C114: 0 | D114: 0 | E114: 0 | F114: 662 | G114: 837 | H114: 1050 | I114: 824.2677525
A115: 112 | B115: 1270 | C115: 0 | D115: 0 | E115: 0 | F115: 579 | G115: 804 | H115: 1050 | I115: 820.6442474
A116: 113 | B116: 1270 | C116: 1 | D116: 0 | E116: 2032 | F116: 761 | G116: 798 | H116: 1050 | I116: 822.2767245
A117: 114 | B117: 1270 | C117: 1 | D117: 0 | E117: 2032 | F117: 920 | G117: 814 | H117: 1050 | I117: 829.1429155
A118: 115 | B118: 1270 | C118: 1 | D118: 1 | E118: 0 | F118: 805 | G118: 812 | H118: 1050 | I118: 841.1491602
A119: 116 | B119: 1270 | C119: 0 | D119: 1 | E119: 2032 | F119: 959 | G119: 831 | H119: 1050 | I119: 858.1316841
A120: 117 | B120: 1270 | C120: 0 | D120: 1 | E120: 2032 | F120: 1094 | G120: 864 | H120: 1050 | I120: 879.8588323
A121: 118 | B121: 1270 | C121: 0 | D121: 0 | E121: 0 | F121: 957 | G121: 876 | H121: 1050 | I121: 906.0342295
A122: 119 | B122: 1270 | C122: 1 | D122: 0 | E122: 2032 | F122: 1092 | G122: 903 | H122: 1050 | I122: 936.3008229
A123: 120 | B123: 1270 | C123: 1 | D123: 0 | E123: 2032 | F123: 1210 | G123: 942 | H123: 1050 | I123: 970.2457525
A124: 121 | B124: 1270 | C124: 1 | D124: 0 | E124: 2032 | F124: 1313 | G124: 989 | H124: 1050 | I124: 1007.405983
A125: 122 | B125: 1270 | C125: 0 | D125: 1 | E125: 2032 | F125: 1403 | G125: 1041 | H125: 1050 | I125: 1047.27462
A126: 123 | B126: 1270 | C126: 0 | D126: 1 | E126: 2032 | F126: 1482 | G126: 1097 | H126: 1050 | I126: 1089.307824
A127: 124 | B127: 1270 | C127: 0 | D127: 1 | E127: 2032 | F127: 1551 | G127: 1154 | H127: 1050 | I127: 1132.932229
A128: 125 | B128: 1270 | C128: 1 | D128: 0 | E128: 2032 | F128: 1612 | G128: 1212 | H128: 1050 | I128: 1177.552765
A129: 126 | B129: 1270 | C129: 1 | D129: 0 | E129: 2032 | F129: 1665 | G129: 1269 | H129: 1050 | I129: 1222.560772
A130: 127 | B130: 1270 | C130: 1 | D130: 0 | E130: 2032 | F130: 1711 | G130: 1325 | H130: 1050 | I130: 1267.342306
A131: 128 | B131: 1270 | C131: 1 | D131: 1 | E131: 0 | F131: 1497 | G131: 1347 | H131: 1050 | I131: 1311.286513
A132: 129 | B132: 1270 | C132: 0 | D132: 1 | E132: 2032 | F132: 1564 | G132: 1375 | H132: 1050 | I132: 1353.793958
A133: 130 | B133: 1270 | C133: 0 | D133: 1 | E133: 2032 | F133: 1623 | G133: 1406 | H133: 1050 | I133: 1394.284807
A134: 131 | B134: 1270 | C134: 0 | D134: 1 | E134: 2032 | F134: 1675 | G134: 1440 | H134: 1050 | I134: 1432.206733
A135: 132 | B135: 1070 | C135: 1 | D135: 0 | E135: 2032 | F135: 1720 | G135: 1475 | H135: 1050 | I135: 1467.042453
A136: 133 | B136: 1070 | C136: 1 | D136: 0 | E136: 2032 | F136: 1759 | G136: 1511 | H136: 1050 | I136: 1498.316778
A137: 134 | B137: 1070 | C137: 1 | D137: 0 | E137: 2032 | F137: 1794 | G137: 1547 | H137: 1050 | I137: 1525.603103
A138: 135 | B138: 1070 | C138: 1 | D138: 1 | E138: 0 | F138: 1569 | G138: 1550 | H138: 1050 | I138: 1548.529222
A139: 136 | B139: 1070 | C139: 0 | D139: 1 | E139: 2032 | F139: 1627 | G139: 1560 | H139: 1050 | I139: 1566.782404
A140: 137 | B140: 1070 | C140: 0 | D140: 1 | E140: 2032 | F140: 1678 | G140: 1575 | H140: 1050 | I140: 1580.113661
A141: 138 | B141: 1070 | C141: 0 | D141: 0 | E141: 0 | F141: 1468 | G141: 1561 | H141: 1050 | I141: 1588.341145
A142: 139 | B142: 1070 | C142: 1 | D142: 0 | E142: 2032 | F142: 1539 | G142: 1558 | H142: 1050 | I142: 1591.352626
A143: 140 | B143: 1070 | C143: 1 | D143: 0 | E143: 2032 | F143: 1601 | G143: 1564 | H143: 1050 | I143: 1589.107026
A144: 141 | B144: 1070 | C144: 1 | D144: 0 | E144: 2032 | F144: 1655 | G144: 1576 | H144: 1050 | I144: 1581.634976
A145: 142 | B145: 1070 | C145: 1 | D145: 1 | E145: 0 | F145: 1448 | G145: 1560 | H145: 1050 | I145: 1569.038401
A146: 143 | B146: 1070 | C146: 0 | D146: 1 | E146: 2032 | F146: 1521 | G146: 1555 | H146: 1050 | I146: 1551.489127
A147: 144 | B147: 1070 | C147: 0 | D147: 1 | E147: 2032 | F147: 1585 | G147: 1559 | H147: 1050 | I147: 1529.226541
A148: 145 | B148: 1070 | C148: 0 | D148: 0 | E148: 0 | F148: 1386 | G148: 1537 | H148: 1050 | I148: 1502.554322
A149: 146 | B149: 1070 | C149: 0 | D149: 0 | E149: 0 | F149: 1212 | G149: 1496 | H149: 1050 | I149: 1471.8363
A150: 147 | B150: 1070 | C150: 1 | D150: 0 | E150: 2032 | F150: 1315 | G150: 1473 | H150: 1050 | I150: 1437.491492
A151: 148 | B151: 1070 | C151: 1 | D151: 1 | E151: 0 | F151: 1150 | G151: 1432 | H151: 1050 | I151: 1399.988389
A152: 149 | B152: 1070 | C152: 1 | D152: 1 | E152: 0 | F152: 1006 | G152: 1378 | H152: 1050 | I152: 1359.838561
A153: 150 | B153: 1070 | C153: 1 | D153: 1 | E153: 0 | F153: 880 | G153: 1315 | H153: 1050 | I153: 1317.589684
A154: 151 | B154: 1070 | C154: 0 | D154: 1 | E154: 2032 | F154: 1024 | G154: 1278 | H154: 1050 | I154: 1273.818066
A155: 152 | B155: 1070 | C155: 0 | D155: 0 | E155: 0 | F155: 896 | G155: 1230 | H155: 1050 | I155: 1229.120786
A156: 153 | B156: 1070 | C156: 0 | D156: 0 | E156: 0 | F156: 784 | G156: 1174 | H156: 1050 | I156: 1184.107549
A157: 154 | B157: 1070 | C157: 0 | D157: 0 | E157: 0 | F157: 686 | G157: 1113 | H157: 1050 | I157: 1139.392371
A158: 155 | B158: 1070 | C158: 1 | D158: 1 | E158: 0 | F158: 600 | G158: 1048 | H158: 1050 | I158: 1095.585203
A159: 156 | B159: 1070 | C159: 1 | D159: 1 | E159: 0 | F159: 525 | G159: 982 | H159: 1050 | I159: 1053.283607
A160: 157 | B160: 1070 | C160: 1 | D160: 1 | E160: 0 | F160: 459 | G160: 916 | H160: 1050 | I160: 1013.064611
A161: 158 | B161: 1070 | C161: 0 | D161: 1 | E161: 2032 | F161: 656 | G161: 883 | H161: 1050 | I161: 975.4768329
A162: 159 | B162: 1270 | C162: 0 | D162: 0 | E162: 0 | F162: 574 | G162: 844 | H162: 1050 | I162: 941.033
A163: 160 | B163: 1270 | C163: 0 | D163: 0 | E163: 0 | F163: 502 | G163: 801 | H163: 1050 | I163: 910.2029528
A164: 161 | B164: 1270 | C164: 0 | D164: 0 | E164: 0 | F164: 439 | G164: 755 | H164: 1050 | I164: 883.4072371
A165: 162 | B165: 1270 | C165: 1 | D165: 0 | E165: 2032 | F165: 639 | G165: 740 | H165: 1050 | I165: 861.0113674
A166: 163 | B166: 1270 | C166: 1 | D166: 1 | E166: 0 | F166: 559 | G166: 717 | H166: 1050 | I166: 843.3208409
A167: 164 | B167: 1270 | C167: 1 | D167: 1 | E167: 0 | F167: 489 | G167: 688 | H167: 1050 | I167: 830.5769701
A168: 165 | B168: 1270 | C168: 0 | D168: 1 | E168: 2032 | F168: 682 | G168: 687 | H168: 1050 | I168: 822.9535914
A169: 166 | B169: 1270 | C169: 0 | D169: 1 | E169: 2032 | F169: 851 | G169: 708 | H169: 1050 | I169: 820.5546937
A170: 167 | B170: 1270 | C170: 0 | D170: 0 | E170: 0 | F170: 744 | G170: 713 | H170: 1050 | I170: 823.4129997
A171: 168 | B171: 1270 | C171: 1 | D171: 0 | E171: 2032 | F171: 905 | G171: 737 | H171: 1050 | I171: 831.4895199
A172: 169 | B172: 1270 | C172: 1 | D172: 0 | E172: 2032 | F172: 1046 | G172: 776 | H172: 1050 | I172: 844.6740844
A173: 170 | B173: 1270 | C173: 1 | D173: 1 | E173: 0 | F173: 915 | G173: 794 | H173: 1050 | I173: 862.7868453
A174: 171 | B174: 1270 | C174: 0 | D174: 1 | E174: 2032 | F174: 1055 | G174: 827 | H174: 1050 | I174: 885.5807304
A175: 172 | B175: 1270 | C175: 0 | D175: 1 | E175: 2032 | F175: 1178 | G175: 871 | H175: 1050 | I175: 912.7448134
A176: 173 | B176: 1270 | C176: 0 | D176: 1 | E176: 2032 | F176: 1285 | G176: 923 | H176: 1050 | I176: 943.908555
A177: 174 | B177: 1270 | C177: 1 | D177: 0 | E177: 2032 | F177: 1379 | G177: 980 | H177: 1050 | I177: 978.6468575
A178: 175 | B178: 1270 | C178: 1 | D178: 0 | E178: 2032 | F178: 1461 | G178: 1041 | H178: 1050 | I178: 1016.485863
A179: 176 | B179: 1270 | C179: 1 | D179: 0 | E179: 2032 | F179: 1533 | G179: 1103 | H179: 1050 | I179: 1056.909419
A180: 177 | B180: 1270 | C180: 0 | D180: 1 | E180: 2032 | F180: 1596 | G180: 1165 | H180: 1050 | I180: 1099.366115
A181: 178 | B181: 1270 | C181: 0 | D181: 1 | E181: 2032 | F181: 1651 | G181: 1226 | H181: 1050 | I181: 1143.27681
A182: 179 | B182: 1270 | C182: 0 | D182: 1 | E182: 2032 | F182: 1699 | G182: 1286 | H182: 1050 | I182: 1188.042527
A183: 180 | B183: 1270 | C183: 0 | D183: 0 | E183: 0 | F183: 1486 | G183: 1311 | H183: 1050 | I183: 1233.052626
A184: 181 | B184: 1270 | C184: 1 | D184: 0 | E184: 2032 | F184: 1555 | G184: 1342 | H184: 1050 | I184: 1277.693136
A185: 182 | B185: 1270 | C185: 1 | D185: 0 | E185: 2032 | F185: 1615 | G185: 1377 | H185: 1050 | I185: 1321.355125
A186: 183 | B186: 1270 | C186: 1 | D186: 0 | E186: 2032 | F186: 1668 | G186: 1414 | H186: 1050 | I186: 1363.443009
A187: 184 | B187: 1270 | C187: 0 | D187: 1 | E187: 2032 | F187: 1714 | G187: 1452 | H187: 1050 | I187: 1403.382676
A188: 185 | B188: 1070 | C188: 0 | D188: 1 | E188: 2032 | F188: 1754 | G188: 1490 | H188: 1050 | I188: 1440.629318
A189: 186 | B189: 1070 | C189: 0 | D189: 1 | E189: 2032 | F189: 1789 | G189: 1528 | H189: 1050 | I189: 1474.674863
A190: 187 | B190: 1070 | C190: 1 | D190: 0 | E190: 2032 | F190: 1820 | G190: 1565 | H190: 1050 | I190: 1505.054901
A191: 188 | B191: 1070 | C191: 1 | D191: 0 | E191: 2032 | F191: 1847 | G191: 1601 | H191: 1050 | I191: 1531.355027
A192: 189 | B192: 1070 | C192: 1 | D192: 0 | E192: 2032 | F192: 1871 | G192: 1635 | H192: 1050 | I192: 1553.216484
A193: 190 | B193: 1070 | C193: 1 | D193: 1 | E193: 0 | F193: 1637 | G193: 1636 | H193: 1050 | I193: 1570.341068
A194: 191 | B194: 1070 | C194: 0 | D194: 1 | E194: 2032 | F194: 1687 | G194: 1643 | H194: 1050 | I194: 1582.495183
A195: 192 | B195: 1070 | C195: 0 | D195: 1 | E195: 2032 | F195: 1731 | G195: 1654 | H195: 1050 | I195: 1589.51304
A196: 193 | B196: 1070 | C196: 0 | D196: 0 | E196: 0 | F196: 1514 | G196: 1636 | H196: 1050 | I196: 1591.298908
A197: 194 | B197: 1070 | C197: 0 | D197: 0 | E197: 0 | F197: 1324 | G197: 1597 | H197: 1050 | I197: 1587.828427
A198: 195 | B198: 1070 | C198: 1 | D198: 0 | E198: 2032 | F198: 1413 | G198: 1574 | H198: 1050 | I198: 1579.148938
A199: 196 | B199: 1070 | C199: 1 | D199: 0 | E199: 2032 | F199: 1491 | G199: 1563 | H199: 1050 | I199: 1565.378835
A200: 197 | B200: 1070 | C200: 1 | D200: 1 | E200: 0 | F200: 1304 | G200: 1530 | H200: 1050 | I200: 1546.705954
A201: 198 | B201: 1070 | C201: 1 | D201: 1 | E201: 0 | F201: 1141 | G201: 1481 | H201: 1050 | I201: 1523.385006
... 71 more rows

Sheet Filter Plot
A1: Z Plot | E1: Loop Filter | K1: Z Transform | Q1: Output Filter
A2: Sample Rate | B2: 12000 | C2: 32 | E2: R1 | F2: 10000 | G2: R | K2: K | L2: =H7*2*PI()/TAN(2*PI()*H7/2/B2) -> 23986.11228 | N2: b0 | O2: 0 | Q2: RC Filter | R2: A = Exp(-2*pi()*Fc/Fs)
A3: A0 | B3: =L3 -> 0.04011437959 | C3: =B3*$C$2 -> 1.283660147 | E3: R2 | F3: 1 | G3: R | K3: B0 | L3: =(O2*$L$2*$L$2+O3*$L$2+O4)/($O$5*$L$2*$L$2+$O$6*$L$2+$O$7) -> 0.04011437959 | N3: b1 | O3: =F6 -> 1e-07 | Q3: SR | R3: 12000 | S3: Sample Frequency
A4: A1 | B4: =L4 -> 0.08003678205 | C4: =B4*$C$2 -> 2.561177026 | E4: C | F4: 1e-07 | G4: F | K4: B1 | L4: =(2*O4-2*O2*$L$2*$L$2)/($O$5*$L$2*$L$2+$O$6*$L$2+$O$7) -> 0.08003678205 | N4: b2 | O4: 1 | Q4: LPF | R4: 123.2796033 | S4: Corner Frequency
A5: A2 | B5: =L5 -> 0.03992240246 | C5: =B5*$C$2 -> 1.277516879 | E5: T1 | F5: =F2*F4 -> 0.001 | G5: R1C | H5: =1/(2*PI()*F5) -> 159.1549431 | I5: Hz | K5: B2 | L5: =(O2*$L$2*$L$2-O3*$L$2+O4)/($O$5*$L$2*$L$2+$O$6*$L$2+$O$7) -> 0.03992240246 | N5: a0 | O5: 0 | Q5: D2 | R5: 16 | S5: Divisor
A6: B1 | B6: =L6 -> 0.08003678205 | C6: =B6*$C$2 -> 2.561177026 | E6: T2 | F6: =F3*F4 -> 1e-07 | G6: R2C | H6: =1/(2*PI()*F6) -> 1591549.431 | I6: Hz | K6: A1 | L6: =(2*O7-2*O5*$L$2*$L$2)/($O$5*$L$2*$L$2+$O$6*$L$2+$O$7) -> 0.08003678205 | N6: a1 | O6: =F7 -> 0.0010001 | Q6: A | R6: =R5*EXP(-2*PI()*R4/R3) -> 14.99984208 | S6: Constant
A7: B2 | B7: =L7 -> -0.919963218 | C7: =B7*$C$2 -> -29.43882297 | E7: T3 | F7: =F5+F6 -> 0.0010001 | G7: (R1+R2)*C | H7: =1/(2*PI()*F7) -> 159.1390292 | I7: Hz | K7: A2 | L7: =(O5*$L$2*$L$2-$O$6*$L$2+O7)/($O$5*$L$2*$L$2+$O$6*$L$2+$O$7) -> -0.919963218 | N7: a2 | O7: 1 | Q7: LP=PD+A*(LP-PD)/D)
D12: Recursive Filter Plotter
B13: S plot | D13: Numerator | F13: Demoninator | H13: Z plot
A14: Frequency | B14: S Magn | C14: S Phase | D14: Real | E14: Imaginary | F14: Real | G14: Imaginary | H14: Z Magn | I14: Z Phase
A15: 1 | B15: =20*LOG10(SQRT(1+($A15*2*PI())^2*$F$6^2)/SQRT(1+($A15*2*PI())^2*$F$7^2)) -> -0.0001714834941 | C15: =(ATAN2(1,2*PI()*$A15*$F$6)-ATAN2(1,2*PI()*$A15*$F$7))*180/PI() -> -0.3599952613 | D15: =$B$3*COS(0*2*PI()*$A15/$B$2)+$B$4*COS(1*2*PI()*$A15/$B$2)+$B$5*COS(2*2*PI()*$A15/$B$2) -> 0.1600735312 | E15: =$B$3*SIN(0*2*PI()*$A15/$B$2)+$B$4*SIN(1*2*PI()*$A15/$B$2)+$B$5*SIN(2*2*PI()*$A15/$B$2) -> 8.371379362e-05 | F15: =1*COS(0*2*PI()*$A15/$B$2)+$B$6*COS(1*2*PI()*$A15/$B$2)+$B$7*COS(2*2*PI()*$A15/$B$2) -> 0.1600740575 | G15: =1*SIN(0*2*PI()*$A15/$B$2)+$B$6*SIN(1*2*PI()*$A15/$B$2)+$B$7*SIN(2*2*PI()*$A15/$B$2) -> -0.0009214758938 | H15: =20*LOG10(SQRT((D15*D15+E15*E15))/SQRT((F15*F15+G15*G15))) -> -0.0001712851037 | I15: =-(ATAN2(D15,E15)-ATAN2(F15,G15))*180/PI() -> -0.3597869619
A16: 2 | B16: =20*LOG10(SQRT(1+($A16*2*PI())^2*$F$6^2)/SQRT(1+($A16*2*PI())^2*$F$7^2)) -> -0.0006858933535 | C16: =(ATAN2(1,2*PI()*$A16*$F$6)-ATAN2(1,2*PI()*$A16*$F$7))*180/PI() -> -0.7199620929 | D16: 0.1600734327 | E16: 0.0001674275299 | F16: 0.1600755379 | G16: -0.001842950743 | H16: =20*LOG10(SQRT((D16*D16+E16*E16))/SQRT((F16*F16+G16*G16))) -> -0.0006850999798 | I16: =-(ATAN2(D16,E16)-ATAN2(F16,G16))*180/PI() -> -0.7195455929
A17: 3 | B17: -0.001543107741 | C17: -1.079872079 | D17: 0.1600732683 | E17: 0.0002511411515 | F17: 0.1600780052 | G17: -0.002764423501 | H17: -0.001541323355 | I17: -1.079247575
A18: 4 | B18: -0.002742923703 | C18: -1.43969683 | D18: 0.1600730383 | E18: 0.0003348546011 | F18: 0.1600814594 | G18: -0.003685893125 | H18: -0.002739753212 | I18: -1.438864618
A19: 5 | B19: -0.004285057327 | C19: -1.799407997 | D19: 0.1600727426 | E19: 0.0004185678214 | F19: 0.1600859004 | G19: -0.004607358569 | H19: -0.004280106951 | I19: -1.798368471
A20: 6 | B20: -0.006169143966 | C20: -2.158977285 | D20: 0.1600723811 | E20: 0.000502280755 | F20: 0.1600913284 | G20: -0.005528818789 | H20: -0.006162021611 | I20: -2.157730936
A21: 7 | B21: -0.008394738529 | C21: -2.518376465 | D21: 0.1600719539 | E21: 0.0005859933446 | F21: 0.1600977433 | G21: -0.006450272738 | H21: -0.008385054152 | I21: -2.516923883
A22: 8 | B22: -0.01096131583 | C22: -2.877577391 | D22: 0.160071461 | E22: 0.0006697055328 | F22: 0.160105145 | G22: -0.007371719372 | H22: -0.01094868181 | I22: -2.875919261
A23: 9 | B23: -0.01386827098 | C23: -3.236552006 | D23: 0.1600709024 | E23: 0.0007534172624 | F23: 0.1601135337 | G23: -0.008293157647 | H23: -0.01385230249 | I23: -3.234689112
A24: 10 | B24: -0.01711491991 | C24: -3.595272364 | D24: 0.160070278 | E24: 0.000837128476 | F24: 0.1601229091 | G24: -0.009214586517 | H24: -0.01709523526 | I24: -3.593205583
A25: 11 | B25: -0.02070049985 | C25: -3.953710635 | D25: 0.1600695879 | E25: 0.0009208391162 | F25: 0.1601332715 | G25: -0.01013600494 | H25: -0.02067672086 | I25: -3.951440941
A26: 12 | B26: -0.02462416996 | C26: -4.311839123 | D26: 0.1600688321 | E26: 0.001004549126 | F26: 0.1601446207 | G26: -0.01105741186 | H26: -0.02459592231 | I26: -4.309367584
A27: 13 | B27: -0.02888501196 | C27: -4.669630275 | D27: 0.1600680106 | E27: 0.001088258447 | F27: 0.1601569567 | G27: -0.01197880625 | H27: -0.02885192554 | I27: -4.666958053
A28: 14 | B28: -0.03348203087 | C28: -5.027056697 | D28: 0.1600671234 | E28: 0.001171967023 | F28: 0.1601702795 | G28: -0.01290018705 | H28: -0.03344374013 | I28: -5.024185046
A29: 15 | B29: -0.03841415574 | C29: -5.384091163 | D29: 0.1600661704 | E29: 0.001255674797 | F29: 0.1601845892 | G29: -0.01382155323 | H29: -0.03837030002 | I29: -5.381021428
A30: 16 | B30: -0.04368024051 | C30: -5.740706628 | D30: 0.1600651518 | E30: 0.00133938171 | F30: 0.1601998856 | G30: -0.01474290373 | H30: -0.04363046436 | I30: -5.737440247
A31: 17 | B31: -0.04927906485 | C31: -6.096876242 | D31: 0.1600640674 | E31: 0.001423087707 | F31: 0.1602161688 | G31: -0.01566423751 | H31: -0.04922301841 | I31: -6.093414741
A32: 18 | B32: -0.05520933515 | C32: -6.45257336 | D32: 0.1600629173 | E32: 0.001506792728 | F32: 0.1602334387 | G32: -0.01658555352 | H32: -0.05514667441 | I32: -6.448918353
A33: 19 | B33: -0.06146968543 | C33: -6.80777155 | D33: 0.1600617015 | E33: 0.001590496718 | F33: 0.1602516954 | G33: -0.01750685073 | H33: -0.06140007257 | I33: -6.80392474
A34: 20 | B34: -0.06805867842 | C34: -7.162444613 | D34: 0.16006042 | E34: 0.001674199618 | F34: 0.1602709388 | G34: -0.01842812808 | H34: -0.06798178213 | I34: -7.158407787
A35: 21 | B35: -0.07497480662 | C35: -7.516566582 | D35: 0.1600590728 | E35: 0.001757901372 | F35: 0.1602911688 | G35: -0.01934938454 | H35: -0.07489030238 | I35: -7.512341613
A36: 22 | B36: -0.08221649342 | C36: -7.870111745 | D36: 0.1600576598 | E36: 0.001841601921 | F36: 0.1603123856 | G36: -0.02027061906 | H36: -0.08212406382 | I36: -7.865700589
A37: 23 | B37: -0.08978209432 | C37: -8.223054645 | D37: 0.1600561812 | E37: 0.00192530121 | F37: 0.160334589 | G37: -0.02119183058 | H37: -0.0896814293 | I37: -8.218459339
A38: 24 | B38: -0.09766989807 | C38: -8.575370097 | D38: 0.1600546368 | E38: 0.00200899918 | F38: 0.160357779 | G38: -0.02211301808 | H38: -0.09756069525 | I38: -8.570592759
A39: 25 | B39: -0.105878128 | C39: -8.927033195 | D39: 0.1600530267 | E39: 0.002092695773 | F39: 0.1603819556 | G39: -0.02303418049 | H39: -0.1057600929 | I39: -8.92207602
A40: 26 | B40: -0.1144049432 | C40: -9.27801932 | D40: 0.160051351 | E40: 0.002176390934 | F40: 0.1604071187 | G40: -0.02395531679 | H40: -0.1142777895 | I40: -9.272884583
A41: 27 | B41: -0.12324844 | C41: -9.628304153 | D41: 0.1600496095 | E41: 0.002260084604 | F41: 0.1604332684 | G41: -0.02487642592 | H41: -0.1231118899 | I41: -9.622994202
A42: 28 | B42: -0.1324066532 | C42: -9.977863681 | D42: 0.1600478023 | E42: 0.002343776726 | F42: 0.1604604046 | G42: -0.02579750684 | H42: -0.1322604376 | I42: -9.972380939
A43: 29 | B43: -0.1418775577 | C43: -10.32667421 | D43: 0.1600459294 | E43: 0.002427467243 | F43: 0.1604885273 | G43: -0.0267185585 | H43: -0.1417214163 | I43: -10.32102117
A44: 30 | B44: -0.1516590696 | C44: -10.67471235 | D44: 0.1600439909 | E44: 0.002511156098 | F44: 0.1605176365 | G44: -0.02763957987 | H44: -0.1514927512 | I44: -10.66889158
A45: 31 | B45: -0.1617490478 | C45: -11.02195508 | D45: 0.1600419866 | E45: 0.002594843232 | F45: 0.160547732 | G45: -0.02856056989 | H45: -0.1615723107 | I45: -11.01596922
A46: 32 | B46: -0.1721452957 | C46: -11.36837968 | D46: 0.1600399166 | E46: 0.00267852859 | F46: 0.160578814 | G46: -0.02948152752 | H46: -0.1719579077 | I46: -11.36223142
A47: 33 | B47: -0.1828455624 | C47: -11.7139638 | D47: 0.1600377809 | E47: 0.002762212113 | F47: 0.1606108822 | G47: -0.03040245172 | H47: -0.182647301 | I47: -11.70765591
A48: 34 | B48: -0.1938475444 | C48: -12.05868544 | D48: 0.1600355796 | E48: 0.002845893745 | F48: 0.1606439368 | G48: -0.03132334144 | H48: -0.1936381971 | I48: -12.05222075
A49: 35 | B49: -0.2051488871 | C49: -12.40252294 | D49: 0.1600333125 | E49: 0.002929573427 | F49: 0.1606779777 | G49: -0.03224419564 | H49: -0.2049282515 | I49: -12.39590434
A50: 36 | B50: -0.2167471864 | C50: -12.74545504 | D50: 0.1600309798 | E50: 0.003013251103 | F50: 0.1607130048 | G50: -0.03316501327 | H50: -0.2165150704 | I50: -12.73868546
A51: 37 | B51: -0.2286399905 | C51: -13.08746081 | D51: 0.1600285814 | E51: 0.003096926715 | F51: 0.1607490181 | G51: -0.0340857933 | H51: -0.2283962124 | I51: -13.08054328
A52: 38 | B52: -0.240824801 | C52: -13.42851973 | D52: 0.1600261173 | E52: 0.003180600207 | F52: 0.1607860175 | G52: -0.03500653467 | H52: -0.2405691897 | I52: -13.4214573
A53: 39 | B53: -0.253299075 | C53: -13.76861165 | D53: 0.1600235875 | E53: 0.00326427152 | F53: 0.1608240031 | G53: -0.03592723634 | H53: -0.2530314702 | I53: -13.76140744
A54: 40 | B54: -0.2660602266 | C54: -14.10771681 | D54: 0.160020992 | E54: 0.003347940597 | F54: 0.1608629748 | G54: -0.03684789726 | H54: -0.2657804787 | I54: -14.10037398
A55: 41 | B55: -0.2791056284 | C55: -14.44581583 | D55: 0.1600183308 | E55: 0.003431607382 | F55: 0.1609029324 | G55: -0.0377685164 | H55: -0.2788135989 | I55: -14.4383376
A56: 42 | B56: -0.2924326134 | C56: -14.78288974 | D56: 0.160015604 | E56: 0.003515271817 | F56: 0.1609438761 | G56: -0.03868909271 | H56: -0.2921281747 | I56: -14.77527937
A57: 43 | B57: -0.3060384763 | C57: -15.11891997 | D57: 0.1600128115 | E57: 0.003598933844 | F57: 0.1609858057 | G57: -0.03960962515 | H57: -0.3057215123 | I57: -15.11118076
A58: 44 | B58: -0.3199204756 | C58: -15.45388832 | D58: 0.1600099533 | E58: 0.003682593406 | F58: 0.1610287212 | G58: -0.04053011266 | H58: -0.3195908812 | I58: -15.44602363
A59: 45 | B59: -0.3340758348 | C59: -15.78777704 | D59: 0.1600070294 | E59: 0.003766250447 | F59: 0.1610726225 | G59: -0.04145055422 | H59: -0.3337335163 | I59: -15.77979026
A60: 46 | B60: -0.3485017446 | C60: -16.12056876 | D60: 0.1600040399 | E60: 0.003849904908 | F60: 0.1611175096 | G60: -0.04237094877 | H60: -0.3481466197 | I60: -16.11246333
A61: 47 | B61: -0.3631953639 | C61: -16.45224653 | D61: 0.1600009847 | E61: 0.003933556733 | F61: 0.1611633825 | G61: -0.04329129526 | H61: -0.3628273618 | I61: -16.4440259
A62: 48 | B62: -0.378153822 | C62: -16.78279381 | D62: 0.1599978639 | E62: 0.004017205864 | F62: 0.1612102411 | G62: -0.04421159266 | H62: -0.3777728834 | I62: -16.77446149
A63: 49 | B63: -0.3933742199 | C63: -17.11219446 | D63: 0.1599946774 | E63: 0.004100852243 | F63: 0.1612580853 | G63: -0.04513183993 | H63: -0.3929802971 | I63: -17.103754
A64: 50 | B64: -0.4088536323 | C64: -17.44043278 | D64: 0.1599914252 | E64: 0.004184495815 | F64: 0.1613069151 | G64: -0.04605203601 | H64: -0.4084466891 | I64: -17.43188774
A65: 51 | B65: -0.4245891087 | C65: -17.76749347 | D65: 0.1599881074 | E65: 0.00426813652 | F65: 0.1613567304 | G65: -0.04697217987 | H65: -0.4241691206 | I65: -17.75884744
A66: 52 | B66: -0.4405776756 | C66: -18.09336165 | D66: 0.1599847239 | E66: 0.004351774303 | F66: 0.1614075313 | G66: -0.04789227046 | H66: -0.4401446297 | I66: -18.08461826
A67: 53 | B67: -0.4568163376 | C67: -18.41802286 | D67: 0.1599812748 | E67: 0.004435409106 | F67: 0.1614593175 | G67: -0.04881230674 | H67: -0.4563702327 | I67: -18.40918576
A68: 54 | B68: -0.4733020794 | C68: -18.74146304 | D68: 0.15997776 | E68: 0.004519040871 | F68: 0.1615120891 | G68: -0.04973228767 | H68: -0.4728429259 | I68: -18.73253591
A69: 55 | B69: -0.4900318671 | C69: -19.06366858 | D69: 0.1599741796 | E69: 0.004602669542 | F69: 0.161565846 | G69: -0.05065221219 | H69: -0.489559687 | I69: -19.05465511
A70: 56 | B70: -0.5070026498 | C70: -19.38462625 | D70: 0.1599705336 | E70: 0.00468629506 | F70: 0.1616205882 | G70: -0.05157207927 | H70: -0.5065174768 | I70: -19.37553016
A71: 57 | B71: -0.5242113614 | C71: -19.70432327 | D71: 0.1599668219 | E71: 0.004769917369 | F71: 0.1616763155 | G71: -0.05249188787 | H71: -0.5237132406 | I71: -19.69514828
A72: 58 | B72: -0.5416549217 | C72: -20.02274724 | D72: 0.1599630446 | E72: 0.004853536412 | F72: 0.161733028 | G72: -0.05341163694 | H72: -0.5411439099 | I72: -20.01349711
A73: 59 | B73: -0.5593302383 | C73: -20.33988619 | D73: 0.1599592016 | E73: 0.004937152131 | F73: 0.1617907255 | G73: -0.05433132544 | H73: -0.5588064037 | I73: -20.33056468
A74: 60 | B74: -0.5772342078 | C74: -20.65572857 | D74: 0.159955293 | E74: 0.00502076447 | F74: 0.161849408 | G74: -0.05525095232 | H74: -0.5766976302 | I74: -20.64633946
A75: 61 | B75: -0.5953637173 | C75: -20.97026323 | D75: 0.1599513188 | E75: 0.00510437337 | F75: 0.1619090755 | G75: -0.05617051655 | H75: -0.5948144879 | I75: -20.9608103
A76: 62 | B76: -0.6137156462 | C76: -21.28347943 | D76: 0.159947279 | E76: 0.005187978774 | F76: 0.1619697278 | G76: -0.05709001708 | H76: -0.6131538673 | I76: -21.27396648
A77: 63 | B77: -0.632286867 | C77: -21.59536682 | D77: 0.1599431735 | E77: 0.005271580626 | F77: 0.1620313649 | G77: -0.05800945286 | H77: -0.6317126525 | I77: -21.58579765
A78: 64 | B78: -0.6510742471 | C78: -21.90591548 | D78: 0.1599390025 | E78: 0.005355178868 | F78: 0.1620939868 | G78: -0.05892882286 | H78: -0.6504877219 | I78: -21.8962939
A79: 65 | B79: -0.6700746503 | C79: -22.21511587 | D79: =$B$3*COS(0*2*PI()*$A79/$B$2)+$B$4*COS(1*2*PI()*$A79/$B$2)+$B$5*COS(2*2*PI()*$A79/$B$2) -> 0.1599347658 | E79: =$B$3*SIN(0*2*PI()*$A79/$B$2)+$B$4*SIN(1*2*PI()*$A79/$B$2)+$B$5*SIN(2*2*PI()*$A79/$B$2) -> 0.005438773443 | F79: =1*COS(0*2*PI()*$A79/$B$2)+$B$6*COS(1*2*PI()*$A79/$B$2)+$B$7*COS(2*2*PI()*$A79/$B$2) -> 0.1621575933 | G79: =1*SIN(0*2*PI()*$A79/$B$2)+$B$6*SIN(1*2*PI()*$A79/$B$2)+$B$7*SIN(2*2*PI()*$A79/$B$2) -> -0.05984812603 | H79: -0.6694759505 | I79: -22.20544568
A80: 66 | B80: =20*LOG10(SQRT(1+($A80*2*PI())^2*$F$6^2)/SQRT(1+($A80*2*PI())^2*$F$7^2)) -> -0.6892849375 | C80: =(ATAN2(1,2*PI()*$A80*$F$6)-ATAN2(1,2*PI()*$A80*$F$7))*180/PI() -> -22.52295885 | D80: 0.1599304635 | E80: 0.005522364294 | F80: 0.1622221843 | G80: -0.06076736133 | H80: =20*LOG10(SQRT((D80*D80+E80*E80))/SQRT((F80*F80+G80*G80))) -> -0.6886742102 | I80: =-(ATAN2(D80,E80)-ATAN2(F80,G80))*180/PI() -> -22.51324387
A81: 67 | B81: -0.7087019688 | C81: -22.82943567 | D81: 0.1599260956 | E81: 0.005605951363 | F81: 0.1622877599 | G81: -0.06168652772 | H81: -0.708079372 | I81: -22.81967973
A82: 68 | B82: -0.7283226042 | C82: -23.13453799 | D82: 0.1599216621 | E82: 0.005689534593 | F82: 0.16235432 | G82: -0.06260562415 | H82: -0.7276883068 | I82: -23.12474489
A83: 69 | B83: -0.7481437051 | C83: -23.43825784 | D83: 0.1599171631 | E83: 0.005773113927 | F83: 0.1624218644 | G83: -0.06352464959 | H83: -0.7474978868 | I83: -23.42843139
A84: 70 | B84: -0.7681621354 | C84: -23.74058763 | D84: 0.1599125984 | E84: 0.005856689308 | F84: 0.1624903931 | G84: -0.06444360298 | H84: -0.7675049864 | I84: -23.73073164
A85: 71 | B85: -0.7883747629 | C85: -24.04152015 | D85: 0.1599079681 | E85: 0.005940260679 | F85: 0.162559906 | G85: -0.06536248329 | H85: -0.7877064841 | I85: -24.03163842
A86: 72 | B86: -0.8087784602 | C86: -24.34104858 | D86: 0.1599032722 | E86: 0.006023827982 | F86: 0.162630403 | G86: -0.06628128948 | H86: -0.8080992628 | I86: -24.33114491
A87: 73 | B87: -0.8293701062 | C87: -24.63916646 | D87: 0.1598985108 | E87: 0.00610739116 | F87: 0.1627018841 | G87: -0.0672000205 | H87: -0.8286802117 | I87: -24.62924464
A88: 74 | B88: -0.8501465868 | C88: -24.93586769 | D88: 0.1598936838 | E88: 0.006190950157 | F88: 0.1627743492 | G88: -0.06811867531 | H88: -0.8494462268 | I88: -24.92593149
A89: 75 | B89: -0.8711047962 | C89: -25.23114653 | D89: 0.1598887912 | E89: 0.006274504914 | F89: 0.1628477982 | G89: -0.06903725287 | H89: -0.8703942125 | I89: -25.22119973
A90: 76 | B90: -0.8922416378 | C90: -25.52499762 | D90: 0.159883833 | E90: 0.006358055374 | F90: 0.162922231 | G90: -0.06995575213 | H90: -0.891521082 | I90: -25.51504397
A91: 77 | B91: -0.9135540255 | C91: -25.81741594 | D91: 0.1598788093 | E91: 0.006441601481 | F91: 0.1629976476 | G91: -0.07087417207 | H91: -0.912823759 | I91: -25.80745917
A92: 78 | B92: -0.9350388844 | C92: -26.1083968 | D92: 0.15987372 | E92: 0.006525143178 | F92: 0.1630740477 | G92: -0.07179251163 | H92: -0.9342991782 | I92: -26.09844065
A93: 79 | B93: -0.9566931519 | C93: -26.39793587 | D93: 0.1598685652 | E93: 0.006608680406 | F93: 0.1631514315 | G93: -0.07271076977 | H93: -0.9559442866 | I93: -26.38798405
A94: 80 | B94: -0.9785137784 | C94: -26.68602916 | D94: 0.1598633448 | E94: 0.006692213109 | F94: 0.1632297987 | G94: -0.07362894545 | H94: -0.9777560439 | I94: -26.67608538
A95: 81 | B95: -1.000497729 | C95: -26.97267301 | D95: 0.1598580588 | E95: 0.00677574123 | F95: 0.1633091494 | G95: -0.07454703764 | H95: -0.999731424 | I95: -26.96274093
A96: 82 | B96: -1.022641982 | C96: -27.25786407 | D96: 0.1598527073 | E96: 0.006859264712 | F96: 0.1633894833 | G96: -0.07546504528 | H96: -1.021867416 | I96: -27.24794737
A97: 83 | B97: -1.044943534 | C97: -27.54159934 | D97: 0.1598472903 | E97: 0.006942783497 | F97: 0.1634708004 | G97: -0.07638296734 | H97: -1.044161023 | I97: -27.53170165
A98: 84 | B98: -1.067399397 | C98: -27.82387612 | D98: 0.1598418077 | E98: 0.007026297528 | F98: 0.1635531007 | G98: -0.07730080278 | H98: -1.066609266 | I98: -27.81400106
A99: 85 | B99: -1.090006598 | C99: -28.10469202 | D99: 0.1598362596 | E99: 0.007109806749 | F99: 0.163636384 | G99: -0.07821855055 | H99: -1.089209183 | I99: -28.09484319
A100: 86 | B100: -1.112762187 | C100: -28.38404496 | D100: 0.1598306459 | E100: 0.007193311101 | F100: 0.1637206502 | G100: -0.07913620962 | H100: -1.11195783 | I100: -28.37422594
A101: 87 | B101: -1.135663228 | C101: -28.66193316 | D101: 0.1598249668 | E101: 0.007276810528 | F101: 0.1638058993 | G101: -0.08005377894 | H101: -1.13485228 | I101: -28.6521475
A102: 88 | B102: -1.158706807 | C102: -28.93835513 | D102: 0.1598192221 | E102: 0.007360304973 | F102: 0.1638921311 | G102: -0.08097125748 | H102: -1.157889628 | I102: -28.92860636
A103: 89 | B103: -1.181890029 | C103: -29.21330967 | D103: 0.1598134119 | E103: 0.007443794379 | F103: 0.1639793456 | G103: -0.08188864419 | H103: -1.181066987 | I103: -29.20360129
A104: 90 | B104: -1.205210022 | C104: -29.48679586 | D104: 0.1598075362 | E104: 0.007527278688 | F104: 0.1640675426 | G104: -0.08280593803 | H104: -1.204381491 | I104: -29.47713136
A105: 91 | B105: -1.228663931 | C105: -29.75881308 | D105: 0.159801595 | E105: 0.007610757843 | F105: 0.1641567221 | G105: -0.08372313796 | H105: -1.227830295 | I105: -29.74919591
A106: 92 | B106: -1.252248927 | C106: -30.02936094 | D106: 0.1597955883 | E106: 0.007694231788 | F106: 0.1642468839 | G106: -0.08464024295 | H106: -1.251410576 | I106: -30.01979453
A107: 93 | B107: -1.275962202 | C107: -30.29843936 | D107: 0.1597895161 | E107: 0.007777700464 | F107: 0.164338028 | G107: -0.08555725195 | H107: -1.275119533 | I107: -30.2889271
A108: 94 | B108: -1.299800969 | C108: -30.56604849 | D108: 0.1597833784 | E108: 0.007861163816 | F108: 0.1644301543 | G108: -0.08647416392 | H108: -1.298954387 | I108: -30.55659376
A109: 95 | B109: -1.323762468 | C109: -30.83218875 | D109: 0.1597771753 | E109: 0.007944621785 | F109: 0.1645232626 | G109: -0.08739097782 | H109: -1.322912386 | I109: -30.82279488
A110: 96 | B110: -1.347843959 | C110: -31.0968608 | D110: 0.1597709066 | E110: 0.008028074315 | F110: 0.1646173528 | G110: -0.08830769261 | H110: -1.346990796 | I110: -31.08753112
A111: 97 | B111: -1.37204273 | C111: -31.36006555 | D111: 0.1597645725 | E111: 0.008111521349 | F111: 0.1647124249 | G111: -0.08922430726 | H111: -1.37118691 | I111: -31.35080333
A112: 98 | B112: -1.396356091 | C112: -31.62180415 | D112: 0.1597581729 | E112: 0.00819496283 | F112: 0.1648084788 | G112: -0.09014082071 | H112: -1.395498047 | I112: -31.61261264
A113: 99 | B113: -1.420781378 | C113: -31.88207796 | D113: 0.1597517079 | E113: 0.0082783987 | F113: 0.1649055142 | G113: -0.09105723195 | H113: -1.419921549 | I113: -31.8729604
A114: 100 | B114: -1.445315953 | C114: -32.14088861 | D114: 0.1597451774 | E114: 0.008361828902 | F114: 0.1650035312 | G114: -0.09197353991 | H114: -1.444454783 | I114: -32.13184817
A115: 101 | B115: -1.469957201 | C115: -32.3982379 | D115: 0.1597385814 | E115: 0.00844525338 | F115: 0.1651025296 | G115: -0.09288974357 | H115: -1.469095142 | I115: -32.38927776
A116: 102 | B116: -1.494702537 | C116: -32.65412789 | D116: 0.15973192 | E116: 0.008528672076 | F116: 0.1652025093 | G116: -0.09380584189 | H116: -1.493840046 | I116: -32.64525117
A117: 103 | B117: -1.519549401 | C117: -32.90856081 | D117: 0.1597251932 | E117: 0.008612084934 | F117: 0.1653034702 | G117: -0.09472183382 | H117: -1.518686939 | I117: -32.89977061
A118: 104 | B118: -1.544495256 | C118: -33.16153913 | D118: 0.1597184009 | E118: 0.008695491896 | F118: 0.1654054122 | G118: -0.09563771833 | H118: -1.543633294 | I118: -33.15283851
A119: 105 | B119: -1.569537598 | C119: -33.4130655 | D119: 0.1597115432 | E119: 0.008778892904 | F119: 0.1655083352 | G119: -0.09655349438 | H119: -1.568676608 | I119: -33.40445749
A120: 106 | B120: -1.594673945 | C120: -33.66314277 | D120: 0.15970462 | E120: 0.008862287903 | F120: 0.165612239 | G120: -0.09746916093 | H120: -1.593814406 | I120: -33.65463037
A121: 107 | B121: -1.619901845 | C121: -33.91177397 | D121: 0.1596976314 | E121: 0.008945676835 | F121: 0.1657171235 | G121: -0.09838471694 | H121: -1.619044242 | I121: -33.90336014
A122: 108 | B122: -1.645218872 | C122: -34.15896232 | D122: 0.1596905775 | E122: 0.009029059643 | F122: 0.1658229886 | G122: -0.09930016137 | H122: -1.644363694 | I122: -34.15065
A123: 109 | B123: -1.670622628 | C123: -34.40471121 | D123: 0.1596834581 | E123: 0.00911243627 | F123: 0.1659298343 | G123: -0.1002154932 | H123: -1.66977037 | I123: -34.39650329
A124: 110 | B124: -1.696110743 | C124: -34.64902421 | D124: 0.1596762733 | E124: 0.009195806659 | F124: 0.1660376603 | G124: -0.1011307114 | H124: -1.695261904 | I124: -34.64092357
A125: 111 | B125: -1.721680874 | C125: -34.89190506 | D125: 0.1596690231 | E125: 0.009279170753 | F125: 0.1661464666 | G125: -0.1020458148 | H125: -1.720835957 | I125: -34.88391452
A126: 112 | B126: -1.747330708 | C126: -35.13335766 | D126: 0.1596617076 | E126: 0.009362528495 | F126: 0.166256253 | G126: -0.1029608026 | H126: -1.746490221 | I126: -35.12548002
A127: 113 | B127: -1.773057956 | C127: -35.37338606 | D127: 0.1596543266 | E127: 0.009445879828 | F127: 0.1663670195 | G127: -0.1038756735 | H127: -1.772222413 | I127: -35.36562408
A128: 114 | B128: -1.798860362 | C128: -35.61199447 | D128: 0.1596468803 | E128: 0.009529224695 | F128: 0.1664787658 | G128: -0.1047904267 | H128: -1.798030278 | I128: -35.60435088
A129: 115 | B129: -1.824735694 | C129: -35.84918725 | D129: 0.1596393686 | E129: 0.009612563039 | F129: 0.1665914919 | G129: -0.105705061 | H129: -1.823911591 | I129: -35.84166474
A130: 116 | B130: -1.85068175 | C130: -36.08496888 | D130: 0.1596317915 | E130: 0.009695894803 | F130: 0.1667051977 | G130: -0.1066195755 | H130: -1.849864152 | I130: -36.07757012
A131: 117 | B131: -1.876696357 | C131: -36.31934401 | D131: 0.1596241491 | E131: 0.00977921993 | F131: 0.1668198829 | G131: -0.107533969 | H131: -1.875885793 | I131: -36.31207162
A132: 118 | B132: -1.902777367 | C132: -36.55231741 | D132: 0.1596164413 | E132: 0.009862538362 | F132: 0.1669355476 | G132: -0.1084482406 | H132: -1.901974369 | I132: -36.54517398
A133: 119 | B133: -1.928922664 | C133: -36.78389397 | D133: 0.1596086682 | E133: 0.009945850044 | F133: 0.1670521915 | G133: -0.1093623892 | H133: -1.928127768 | I133: -36.77688206
A134: 120 | B134: -1.955130158 | C134: -37.01407872 | D134: 0.1596008297 | E134: 0.01002915492 | F134: 0.1671698145 | G134: -0.1102764137 | H134: -1.954343903 | I134: -37.00720085
A135: 121 | B135: -1.981397788 | C135: -37.24287678 | D135: 0.1595929259 | E135: 0.01011245293 | F135: 0.1672884166 | G135: -0.1111903132 | H135: -1.980620715 | I135: -37.23613545
A136: 122 | B136: -2.007723518 | C136: -37.47029343 | D136: 0.1595849568 | E136: 0.01019574401 | F136: 0.1674079975 | G136: -0.1121040866 | H136: -2.006956175 | I136: -37.46369109
A137: 123 | B137: -2.034105345 | C137: -37.69633403 | D137: 0.1595769223 | E137: 0.01027902812 | F137: 0.1675285571 | G137: -0.1130177329 | H137: -2.033348279 | I137: -37.6898731
A138: 124 | B138: -2.060541291 | C138: -37.92100405 | D138: 0.1595688226 | E138: 0.0103623052 | F138: 0.1676500954 | G138: -0.113931251 | H138: -2.059795053 | I138: -37.91468692
A139: 125 | B139: -2.087029404 | C139: -38.14430907 | D139: 0.1595606575 | E139: 0.01044557518 | F139: 0.1677726121 | G139: -0.1148446398 | H139: -2.08629455 | I139: -38.13813809
A140: 126 | B140: -2.113567764 | C140: -38.36625476 | D140: 0.1595524271 | E140: 0.01052883801 | F140: 0.1678961071 | G140: -0.1157578984 | H140: -2.112844851 | I140: -38.36023226
A141: 127 | B141: -2.140154476 | C141: -38.58684689 | D141: 0.1595441315 | E141: 0.01061209363 | F141: 0.1680205803 | G141: -0.1166710258 | H141: -2.139444063 | I141: -38.58097515
A142: 128 | B142: -2.166787672 | C142: -38.80609132 | D142: 0.1595357705 | E142: 0.01069534199 | F142: 0.1681460316 | G142: -0.1175840208 | H142: -2.166090321 | I142: -38.8003726
A143: 129 | B143: -2.193465512 | C143: -39.023994 | D143: =$B$3*COS(0*2*PI()*$A143/$B$2)+$B$4*COS(1*2*PI()*$A143/$B$2)+$B$5*COS(2*2*PI()*$A143/$B$2) -> 0.1595273443 | E143: =$B$3*SIN(0*2*PI()*$A143/$B$2)+$B$4*SIN(1*2*PI()*$A143/$B$2)+$B$5*SIN(2*2*PI()*$A143/$B$2) -> 0.01077858303 | F143: =1*COS(0*2*PI()*$A143/$B$2)+$B$6*COS(1*2*PI()*$A143/$B$2)+$B$7*COS(2*2*PI()*$A143/$B$2) -> 0.1682724607 | G143: =1*SIN(0*2*PI()*$A143/$B$2)+$B$6*SIN(1*2*PI()*$A143/$B$2)+$B$7*SIN(2*2*PI()*$A143/$B$2) -> -0.1184968825 | H143: -2.192781789 | I143: -39.01843051
A144: 130 | B144: =20*LOG10(SQRT(1+($A144*2*PI())^2*$F$6^2)/SQRT(1+($A144*2*PI())^2*$F$7^2)) -> -2.220186185 | C144: =(ATAN2(1,2*PI()*$A144*$F$6)-ATAN2(1,2*PI()*$A144*$F$7))*180/PI() -> -39.24056096 | D144: 0.1595188528 | E144: 0.0108618167 | F144: 0.1683998677 | G144: -0.1194096097 | H144: =20*LOG10(SQRT((D144*D144+E144*E144))/SQRT((F144*F144+G144*G144))) -> -2.219516655 | I144: =-(ATAN2(D144,E144)-ATAN2(F144,G144))*180/PI() -> -39.23515489
A145: 131 | B145: -2.246947904 | C145: -39.45579829 | D145: 0.159510296 | E145: 0.01094504293 | F145: 0.1685282522 | G145: -0.1203222016 | H145: -2.246293137 | I145: -39.45055181
A146: 132 | B146: -2.273748911 | C146: -39.6697122 | D146: 0.159501674 | E146: 0.01102826167 | F146: 0.1686576143 | G146: -0.121234657 | H146: -2.273109478 | I146: -39.66462742
A147: 133 | B147: -2.300587474 | C147: -39.88230892 | D147: 0.1594929867 | E147: 0.01111147286 | F147: 0.1687879537 | G147: -0.1221469749 | H147: -2.299963948 | I147: -39.87738793
A148: 134 | B148: -2.327461887 | C148: -40.09359479 | D148: 0.1594842342 | E148: 0.01119467644 | F148: 0.1689192703 | G148: -0.1230591543 | H148: -2.326854843 | I148: -40.08883965
A149: 135 | B149: -2.354370472 | C149: -40.30357619 | D149: 0.1594754164 | E149: 0.01127787237 | F149: 0.1690515639 | G149: -0.1239711941 | H149: -2.353780487 | I149: -40.29898893
A150: 136 | B150: -2.381311576 | C150: -40.51225957 | D150: 0.1594665334 | E150: 0.01136106057 | F150: 0.1691848344 | G150: -0.1248830933 | H150: -2.380739227 | I150: -40.50784218
A151: 137 | B151: -2.408283572 | C151: -40.71965145 | D151: 0.1594575852 | E151: 0.01144424101 | F151: 0.1693190817 | G151: -0.1257948508 | H151: -2.40772944 | I151: -40.71540589
A152: 138 | B152: -2.435284859 | C152: -40.92575837 | D152: 0.1594485717 | E152: 0.01152741361 | F152: 0.1694543056 | G152: -0.1267064658 | H152: -2.434749526 | I152: -40.92168659
A153: 139 | B153: -2.462313861 | C153: -41.13058697 | D153: 0.1594394931 | E153: 0.01161057832 | F153: 0.1695905059 | G153: -0.127617937 | H153: -2.46179791 | I153: -41.12669085
A154: 140 | B154: -2.48936903 | C154: -41.3341439 | D154: 0.1594303493 | E154: 0.01169373508 | F154: 0.1697276826 | G154: -0.1285292634 | H154: -2.488873045 | I154: -41.33042532
A155: 141 | B155: -2.51644884 | C155: -41.53643588 | D155: 0.1594211402 | E155: 0.01177688384 | F155: 0.1698658354 | G155: -0.1294404441 | H155: -2.515973406 | I155: -41.53289667
A156: 142 | B156: -2.543551792 | C156: -41.73746965 | D156: 0.159411866 | E156: 0.01186002454 | F156: 0.1700049641 | G156: -0.130351478 | H156: -2.543097496 | I156: -41.73411163
A157: 143 | B157: -2.57067641 | C157: -41.93725201 | D157: 0.1594025266 | E157: 0.01194315713 | F157: 0.1701450688 | G157: -0.1312623641 | H157: -2.57024384 | I157: -41.93407695
A158: 144 | B158: -2.597821245 | C158: -42.13578979 | D158: 0.159393122 | E158: 0.01202628155 | F158: 0.170286149 | G158: -0.1321731013 | H158: -2.597410989 | I158: -42.13279945
A159: 145 | B159: -2.624984869 | C159: -42.33308986 | D159: 0.1593836523 | E159: 0.01210939773 | F159: 0.1704282049 | G159: -0.1330836886 | H159: -2.624597518 | I159: -42.33028596
A160: 146 | B160: -2.652165882 | C160: -42.52915912 | D160: 0.1593741174 | E160: 0.01219250563 | F160: 0.170571236 | G160: -0.1339941249 | H160: -2.651802026 | I160: -42.52654334
A161: 147 | B161: -2.679362905 | C161: -42.72400449 | D161: 0.1593645173 | E161: 0.01227560518 | F161: 0.1707152424 | G161: -0.1349044093 | H161: -2.679023135 | I161: -42.7215785
A162: 148 | B162: -2.706574583 | C162: -42.91763293 | D162: 0.1593548521 | E162: 0.01235869634 | F162: 0.1708602239 | G162: -0.1358145407 | H162: -2.706259492 | I162: -42.91539835
A163: 149 | B163: -2.733799585 | C163: -43.11005141 | D163: 0.1593451218 | E163: 0.01244177903 | F163: 0.1710061802 | G163: -0.136724518 | H163: -2.733509766 | I163: -43.10800987
A164: 150 | B164: -2.761036603 | C164: -43.30126694 | D164: 0.1593353264 | E164: 0.01252485322 | F164: 0.1711531112 | G164: -0.1376343403 | H164: -2.760772649 | I164: -43.29942
A165: 151 | B165: -2.788284351 | C165: -43.49128654 | D165: 0.1593254658 | E165: 0.01260791883 | F165: 0.1713010168 | G165: -0.1385440065 | H165: -2.788046857 | I165: -43.48963576
A166: 152 | B166: -2.815541568 | C166: -43.68011725 | D166: 0.1593155402 | E166: 0.01269097582 | F166: 0.1714498968 | G166: -0.1394535156 | H166: -2.815331128 | I166: -43.67866414
A167: 153 | B167: -2.842807013 | C167: -43.86776613 | D167: 0.1593055494 | E167: 0.01277402412 | F167: 0.171599751 | G167: -0.1403628665 | H167: -2.842624222 | I167: -43.86651219
A168: 154 | B168: -2.870079468 | C168: -44.05424023 | D168: 0.1592954936 | E168: 0.01285706368 | F168: 0.1717505793 | G168: -0.1412720582 | H168: -2.869924921 | I168: -44.05318694
A169: 155 | B169: -2.897357736 | C169: -44.23954665 | D169: 0.1592853726 | E169: 0.01294009445 | F169: 0.1719023814 | G169: -0.1421810896 | H169: -2.897232028 | I169: -44.23869544
A170: 156 | B170: -2.924640643 | C170: -44.42369246 | D170: 0.1592751866 | E170: 0.01302311636 | F170: 0.1720551573 | G170: -0.1430899599 | H170: -2.924544371 | I170: -44.42304476
A171: 157 | B171: -2.951927036 | C171: -44.60668478 | D171: 0.1592649355 | E171: 0.01310612936 | F171: 0.1722089067 | G171: -0.1439986678 | H171: -2.951860796 | I171: -44.60624196
A172: 158 | B172: -2.979215783 | C172: -44.78853069 | D172: 0.1592546194 | E172: 0.01318913339 | F172: 0.1723636296 | G172: -0.1449072124 | H172: -2.97918017 | I172: -44.78829413
A173: 159 | B173: -3.006505772 | C173: -44.96923731 | D173: 0.1592442382 | E173: 0.0132721284 | F173: 0.1725193256 | G173: -0.1458155927 | H173: -3.006501383 | I173: -44.96920834
A174: 160 | B174: -3.033795912 | C174: -45.14881174 | D174: 0.159233792 | E174: 0.01335511433 | F174: 0.1726759946 | G174: -0.1467238076 | H174: -3.033823344 | I174: -45.14899168
A175: 161 | B175: -3.061085134 | C175: -45.32726109 | D175: 0.1592232807 | E175: 0.01343809113 | F175: 0.1728336365 | G175: -0.1476318561 | H175: -3.061144983 | I175: -45.32765123
A176: 162 | B176: -3.088372388 | C176: -45.50459246 | D176: 0.1592127045 | E176: 0.01352105872 | F176: 0.1729922511 | G176: -0.1485397371 | H176: -3.08846525 | I176: -45.50519407
A177: 163 | B177: -3.115656642 | C177: -45.68081297 | D177: 0.1592020632 | E177: 0.01360401707 | F177: 0.1731518382 | G177: -0.1494474497 | H177: -3.115783113 | I177: -45.68162729
A178: 164 | B178: -3.142936886 | C178: -45.8559297 | D178: 0.1591913569 | E178: 0.01368696611 | F178: 0.1733123977 | G178: -0.1503549928 | H178: -3.143097563 | I178: -45.85695795
A179: 165 | B179: -3.170212128 | C179: -46.02994976 | D179: 0.1591805856 | E179: 0.01376990579 | F179: 0.1734739293 | G179: -0.1512623653 | H179: -3.170407607 | I179: -46.03119313
A180: 166 | B180: -3.197481397 | C180: -46.20288022 | D180: 0.1591697493 | E180: 0.01385283605 | F180: 0.1736364328 | G180: -0.1521695663 | H180: -3.197712272 | I180: -46.20433989
A181: 167 | B181: -3.224743738 | C181: -46.37472817 | D181: 0.159158848 | E181: 0.01393575683 | F181: 0.1737999081 | G181: -0.1530765947 | H181: -3.225010606 | I181: -46.37640528
A182: 168 | B182: -3.251998218 | C182: -46.54550067 | D182: 0.1591478818 | E182: 0.01401866807 | F182: 0.1739643551 | G182: -0.1539834495 | H182: -3.252301673 | I182: -46.54739635
A183: 169 | B183: -3.279243918 | C183: -46.71520477 | D183: 0.1591368506 | E183: 0.01410156973 | F183: 0.1741297735 | G183: -0.1548901296 | H183: -3.279584555 | I183: -46.71732012
A184: 170 | B184: -3.30647994 | C184: -46.88384751 | D184: 0.1591257544 | E184: 0.01418446174 | F184: 0.1742961631 | G184: -0.1557966341 | H184: -3.306858355 | I184: -46.88618362
A185: 171 | B185: -3.333705404 | C185: -47.05143593 | D185: 0.1591145933 | E185: 0.01426734404 | F185: 0.1744635237 | G185: -0.1567029619 | H185: -3.33412219 | I185: -47.05399386
A186: 172 | B186: -3.360919446 | C186: -47.21797702 | D186: 0.1591033673 | E186: 0.01435021659 | F186: 0.1746318552 | G186: -0.1576091119 | H186: -3.361375196 | I186: -47.22075781
A187: 173 | B187: -3.388121221 | C187: -47.3834778 | D187: 0.1590920763 | E187: 0.01443307932 | F187: 0.1748011574 | G187: -0.1585150832 | H187: -3.388616529 | I187: -47.38648247
A188: 174 | B188: -3.415309899 | C188: -47.54794523 | D188: 0.1590807205 | E188: 0.01451593217 | F188: 0.1749714301 | G188: -0.1594208747 | H188: -3.415845358 | I188: -47.55117478
A189: 175 | B189: -3.442484669 | C189: -47.71138628 | D189: 0.1590692997 | E189: 0.0145987751 | F189: 0.1751426731 | G189: -0.1603264853 | H189: -3.44306087 | I189: -47.71484168
A190: 176 | B190: -3.469644736 | C190: -47.87380788 | D190: 0.159057814 | E190: 0.01468160804 | F190: 0.1753148862 | G190: -0.1612319142 | H190: -3.470262271 | I190: -47.8774901
A191: 177 | B191: -3.496789319 | C191: -48.03521695 | D191: 0.1590462634 | E191: 0.01476443094 | F191: 0.1754880692 | G191: -0.1621371602 | H191: -3.49744878 | I191: -48.03912692
A192: 178 | B192: -3.523917657 | C192: -48.19562039 | D192: 0.159034648 | E192: 0.01484724374 | F192: 0.175662222 | G192: -0.1630422222 | H192: -3.524619633 | I192: -48.19975904
A193: 179 | B193: -3.551029002 | C193: -48.35502508 | D193: 0.1590229677 | E193: 0.01493004638 | F193: 0.1758373442 | G193: -0.1639470994 | H193: -3.551774084 | I193: -48.35939329
A194: 180 | B194: -3.578122623 | C194: -48.51343786 | D194: 0.1590112225 | E194: 0.01501283882 | F194: 0.1760134358 | G194: -0.1648517906 | H194: -3.578911399 | I194: -48.51803653
A195: 181 | B195: -3.605197804 | C195: -48.67086555 | D195: 0.1589994125 | E195: 0.01509562098 | F195: 0.1761904966 | G195: -0.1657562948 | H195: -3.606030863 | I195: -48.67569554
A196: 182 | B196: -3.632253843 | C196: -48.82731497 | D196: 0.1589875376 | E196: 0.01517839282 | F196: 0.1763685263 | G196: -0.166660611 | H196: -3.633131774 | I196: -48.83237712
A197: 183 | B197: -3.659290056 | C197: -48.98279289 | D197: 0.158975598 | E197: 0.01526115428 | F197: 0.1765475247 | G197: -0.1675647382 | H197: -3.660213444 | I197: -48.98808803
A198: 184 | B198: -3.686305771 | C198: -49.13730606 | D198: 0.1589635934 | E198: 0.01534390529 | F198: 0.1767274916 | G198: -0.1684686754 | H198: -3.687275203 | I198: -49.14283498
A199: 185 | B199: -3.713300331 | C199: -49.29086119 | D199: 0.1589515241 | E199: 0.01542664582 | F199: 0.176908427 | G199: -0.1693724215 | H199: -3.714316393 | I199: -49.2966247
A200: 186 | B200: -3.740273093 | C200: -49.44346498 | D200: 0.15893939 | E200: 0.01550937579 | F200: 0.1770903304 | G200: -0.1702759754 | H200: -3.74133637 | I200: -49.44946385
A201: 187 | B201: -3.76722343 | C201: -49.5951241 | D201: 0.1589271911 | E201: 0.01559209516 | F201: 0.1772732018 | G201: -0.1711793363 | H201: -3.768334506 | I201: -49.60135909
A202: 188 | B202: -3.794150726 | C202: -49.74584517 | D202: 0.1589149274 | E202: 0.01567480386 | F202: 0.1774570409 | G202: -0.1720825029 | H202: -3.795310184 | I202: -49.75231702
A203: 189 | B203: -3.821054381 | C203: -49.89563482 | D203: 0.1589025989 | E203: 0.01575750185 | F203: 0.1776418475 | G203: -0.1729854744 | H203: -3.822262803 | I203: -49.90234425
A204: 190 | B204: -3.847933807 | C204: -50.04449961 | D204: 0.1588902057 | E204: 0.01584018906 | F204: 0.1778276215 | G204: -0.1738882497 | H204: -3.849191775 | I204: -50.05144733
... 411 more rows
